bitfinex/quotes_ETHUSD_20250413
["timestamp","ask_amount","ask_price","bid_price","bid_amount"]
[1744563137270,7.03636,1593.0,1592.7,6.27851]
[1744563137966,3.0,1593.1,1592.8,7.10979]
[1744563138136,3.0,1593.1,1592.9,6.27784]
[1744563138546,3.0,1593.1,1592.8,14.098889]
[1744563138840,3.0,1593.1,1592.8,7.820699]
[1744563139150,6.27757,1593.0,1592.7,6.27857]
[1744563139354,9.27723,1593.1,1592.7,12.55708]
[1744563139560,12.55451,1593.1,1592.7,12.55708]
[1744563140472,12.55451,1593.1,1592.7,12.61985737]
[1744563140772,12.55451,1593.1,1592.7,12.55708]
[1744563140967,12.55451,1593.1,1592.8,0.18385533]
[1744563142776,6.27723,1593.1,1592.8,6.46191533]
[1744563143667,6.27723,1593.1,1592.8,12.74015533]
[1744563143872,13.33151,1593.2,1592.9,0.8316]
[1744563144073,10.51905796,1593.3,1592.9,7.10944]
[1744563144281,9.2763,1593.3,1593.0,6.988244]
[1744563144435,6.2763,1593.3,1593.0,13.44939933]
[1744563145161,12.5528,1593.3,1593.0,0.89479933]
[1744563145471,12.5528,1593.3,1593.0,0.18385533]
[1744563146982,6.2763,1593.3,1593.0,6.46127533]
[1744563147285,6.2763,1593.3,1593.0,12.73861533]
[1744563147482,6.27696,1593.2,1593.0,0.18385533]
[1744563147648,7.05496,1593.2,1593.0,0.18385533]
[1744563148049,12.55439,1593.1,1592.7,21.4151724]
[1744563148284,6.27706,1593.1,1592.8,6.27824]
[1744563148484,6.27676,1593.2,1592.8,6.27824]
[1744563148704,6.27676,1593.2,1592.9,7.07472]
[1744563149481,6.27676,1593.2,1592.9,13.35244]
[1744563149783,6.27676,1593.2,1592.9,14.687684]
[1744563150684,6.27676,1593.2,1592.9,0.797]
[1744563150987,6.2771,1593.1,1592.9,0.797]
[1744563151870,6.27676,1593.2,1592.9,7.07483]
[1744563152588,12.55361,1593.2,1592.9,7.07483]
[1744563154087,6.27638,1593.3,1592.9,7.07474]
[1744563154462,6.27672,1593.2,1592.9,7.07474]
[1744563154662,6.27672,1593.2,1592.9,8.410032]
[1744563156201,6.27672,1593.2,1593.0,0.18481892]
[1744563157687,7.06292,1593.2,1593.0,0.18481892]
[1744563157985,6.27706,1593.1,1592.8,13.35324]
[1744563158174,6.27706,1593.1,1592.9,0.18554167]
[1744563158371,6.27706,1593.1,1592.8,0.797]
[1744563158577,12.55447,1593.1,1592.9,0.18554167]
[1744563158890,6.27706,1593.1,1592.9,0.18554167]
[1744563159093,7.06298,1593.2,1592.9,6.27785]
[1744563159301,7.06298,1593.2,1593.0,0.18554167]
[1744563159774,0.7862,1593.2,1593.0,6.46282167]
[1744563161270,7.0629,1593.2,1593.0,0.18554167]
[1744563165201,14.49467822,1593.2,1593.0,0.18554167]
[1744563165496,10.76205218,1593.1,1592.8,6.2782]
[1744563169776,10.76205218,1593.1,1592.8,12.55634]
[1744563170093,6.27707,1593.1,1592.8,12.55634]
[1744563170495,8.21771822,1593.2,1592.9,6.27782]
[1744563170799,14.49459822,1593.2,1592.9,6.27782]
[1744563170962,14.49459822,1593.2,1593.0,0.18554167]
[1744563174202,6.27706,1593.1,1593.0,0.18554167]
[1744563174500,6.27706,1593.1,1592.8,6.27814]
[1744563174700,6.27706,1593.1,1593.0,0.18662592]
[1744563174901,7.72653782,1593.1,1592.8,6.27814]
[1744563175105,6.27706,1593.1,1593.0,0.18662592]
[1744563175302,6.27706,1593.1,1592.8,6.27814]
[1744563175486,6.27706,1593.1,1593.0,0.18662592]
[1744563175689,6.27706,1593.1,1592.8,6.27814]
[1744563175999,6.27706,1593.1,1592.8,12.55627]
[1744563176206,6.27706,1593.1,1592.9,0.18662592]
[1744563176500,8.21771822,1593.2,1592.9,6.27785]
[1744563176705,8.21771822,1593.2,1593.0,0.18662592]
[1744563178104,0.7862,1593.2,1593.0,6.46407592]
[1744563178264,14.98066302,1593.3,1593.2,6.27667]
[1744563178265,5.03324084,1593.3,1593.2,6.27667]
[1744563178471,4.21934084,1593.3,1593.2,6.27667]
[1744563178995,4.21934084,1593.3,1593.2,6.46329592]
[1744563179905,4.21934084,1593.3,1593.2,0.18662592]
[1744563180402,4.21934084,1593.3,1593.2,0.18457803]
[1744563180571,4.21934084,1593.3,1593.1,6.27703]
[1744563180768,4.21934084,1593.3,1593.2,0.18457803]
[1744563180997,4.21934084,1593.3,1593.1,7.612274]
[1744563181182,4.21934084,1593.3,1593.2,0.18457803]
[1744563181505,4.21934084,1593.3,1593.1,7.612274]
[1744563181707,14.30978084,1593.3,1593.2,0.18457803]
[1744563182005,9.96267112,1593.3,1592.8,7.07608]
[1744563182201,6.27709,1593.1,1592.9,0.18337331]
[1744563182368,6.27709,1593.1,1592.8,6.27813]
[1744563182565,6.27709,1593.1,1592.9,0.18337331]
[1744563182800,6.27709,1593.1,1592.8,6.27813]
[1744563183001,6.27709,1593.1,1592.9,0.18337331]
[1744563183311,6.27709,1593.1,1592.8,6.27813]
[1744563183514,6.27709,1593.1,1593.0,0.18337331]
[1744563183718,8.06236422,1593.1,1592.8,6.27813]
[1744563183886,6.27709,1593.1,1593.0,0.18337331]
[1744563184381,12.55433,1593.1,1592.8,6.27813]
[1744563184579,12.55433,1593.1,1592.9,0.18337331]
[1744563184779,6.27709,1593.1,1592.8,6.27813]
[1744563185018,6.27709,1593.1,1592.9,0.18337331]
[1744563185319,6.27709,1593.1,1592.8,7.07619]
[1744563185617,6.27709,1593.1,1592.8,13.35431]
[1744563185815,6.27709,1593.1,1592.9,0.18518031]
[1744563186018,6.27709,1593.1,1592.8,7.07619]
[1744563186197,6.27709,1593.1,1592.9,0.18518031]
[1744563186383,6.27709,1593.1,1592.8,7.07619]
[1744563186584,6.27709,1593.1,1592.9,0.18518031]
[1744563186786,6.27709,1593.1,1592.8,7.07619]
[1744563186981,6.27709,1593.1,1592.9,0.18518031]
[1744563187256,6.27746,1593.0,1592.8,0.7981]
[1744563188096,14.31316808,1593.1,1592.8,0.7981]
[1744563188426,8.03579808,1593.1,1592.8,7.07634]
[1744563188725,6.27709,1593.1,1592.8,7.07623]
[1744563189020,12.55432,1593.1,1592.8,7.07623]
[1744563189221,12.55432,1593.1,1592.7,12.55706]
[1744563189425,6.27709,1593.1,1592.8,6.27824]
[1744563190426,6.27709,1593.1,1592.7,6.27853]
[1744563190719,6.27749,1593.0,1592.7,6.27853]
[1744563190924,6.27749,1593.0,1592.7,12.55703]
[1744563191531,7.8566213,1593.1,1592.8,6.27821]
[1744563192903,14.1338713,1593.1,1592.8,6.27821]
[1744563193635,7.8566213,1593.1,1592.8,12.55634]
[1744563193806,6.27709,1593.1,1592.8,12.55634]
[1744563194004,6.27709,1593.1,1592.8,13.35444]
[1744563195098,6.27709,1593.1,1592.8,7.07623]
[1744563196534,12.55438,1593.1,1592.8,7.07623]
[1744563196733,6.27709,1593.1,1592.8,7.07623]
[1744563199830,6.27709,1593.1,1592.8,13.35433]
[1744563200363,6.27709,1593.1,1592.8,7.0762]
[1744563200564,12.55439,1593.1,1592.8,0.7981]
[1744563200865,14.31315308,1593.1,1592.7,13.33508]
[1744563201061,14.31315308,1593.1,1592.9,0.18783065]
[1744563201235,14.31315308,1593.1,1592.7,13.33508]
[1744563201441,12.55439,1593.1,1592.8,0.18783065]
[1744563202455,6.27709,1593.1,1592.8,6.46607065]
[1744563202661,12.55437,1593.1,1592.8,6.46607065]
[1744563202864,6.27709,1593.1,1592.8,6.46607065]
[1744563203261,12.55431,1593.1,1592.8,6.46607065]
[1744563203867,6.27709,1593.1,1592.8,6.46607065]
[1744563204071,12.55436,1593.1,1592.8,6.46607065]
[1744563204669,6.27785,1592.9,1592.8,0.18783065]
[1744563204845,15.11726008,1593.1,1592.8,0.18783065]
[1744563205046,6.27748,1593.0,1592.8,0.18783065]
[1744563205567,12.55517,1593.0,1592.8,0.18783065]
[1744563206668,12.55519,1593.0,1592.8,0.18783065]
[1744563206838,7.05945,1592.9,1592.8,0.18783065]
[1744563207028,7.05945,1592.9,1592.4,12.74268]
[1744563207029,6.27862,1592.8,1592.4,13.55338]
[1744563207229,12.55724,1592.8,1592.5,0.17331012]
[1744563207955,6.2787,1592.7,1592.5,0.17331012]
[1744563209135,0.7816,1592.9,1592.5,6.45270012]
[1744563209136,7.05949,1592.9,1592.5,6.45270012]
[1744563209341,0.7816,1592.9,1592.5,7.17902013]
[1744563209639,7.05947,1592.9,1592.6,6.27892]
[1744563209840,13.33751,1592.9,1592.6,6.27892]
[1744563210040,13.33756,1592.9,1592.7,0.17331012]
[1744563210562,6.27825,1592.8,1592.7,0.17331012]
[1744563210768,7.612022,1592.8,1592.7,0.17331012]
[1744563210970,6.27872,1592.7,1592.4,6.27976]
[1744563211137,7.10232,1592.7,1592.4,6.27976]
[1744563213573,6.2791,1592.6,1592.3,7.09001]
[1744563214473,6.2791,1592.6,1592.3,13.37007]
[1744563216171,7.10232,1592.7,1592.4,6.45295012]
[1744563216338,7.10232,1592.7,1592.4,12.73273012]
[1744563217971,7.10232,1592.7,1592.4,0.17331012]
[1744563218170,7.09663,1592.5,1592.4,0.17331012]
[1744563218346,7.09663,1592.5,1592.2,6.28046]
[1744563218676,13.37635,1592.5,1592.1,13.35696]
[1744563218838,6.27985,1592.4,1592.2,0.16522385]
[1744563219441,8.434345,1592.5,1592.2,0.16522385]
[1744563219864,12.55984,1592.4,1592.2,0.16522385]
[1744563220376,6.28022,1592.3,1592.0,13.35767]
[1744563221074,6.27984,1592.4,1592.1,6.28084]
[1744563221578,12.55992,1592.4,1592.1,6.28084]
[1744563222155,7.7513155,1592.4,1592.0,0.795]
[1744563222341,7.7513155,1592.4,1592.1,6.28085]
[1744563223077,8.434355,1592.5,1592.2,12.5612]
[1744563223078,0.8172,1592.5,1592.2,12.5612]
[1744563224547,13.37634,1592.5,1592.2,6.2806]
[1744563224855,7.09665,1592.5,1592.2,6.2806]
[1744563225283,13.37624,1592.5,1592.2,6.2806]
[1744563228076,6.28025,1592.3,1592.0,7.07632]
[1744563228284,6.28025,1592.3,1592.0,13.35761]
[1744563228464,6.27991,1592.4,1592.0,13.35761]
[1744563228649,6.27991,1592.4,1592.1,6.28101]
[1744563229975,7.09674,1592.5,1592.2,6.2806]
[1744563230150,13.37637,1592.5,1592.2,6.2806]
[1744563230348,5.55311284,1592.8,1592.3,0.8135]
[1744563230551,6.27866,1592.7,1592.4,6.27951]
[1744563230982,6.27866,1592.7,1592.5,0.17136237]
[1744563231285,4.21934084,1592.8,1592.6,7.0924]
[1744563231778,4.21934084,1592.8,1592.7,6.44843749]
[1744563231956,4.21934084,1592.8,1592.7,7.26193749]
[1744563232157,4.21934084,1592.8,1592.7,8.61602124]
[1744563233351,16.77376084,1593.1,1592.7,8.61602124]
[1744563233551,16.77376084,1593.1,1592.7,7.26193749]
[1744563234186,6.27747,1593.0,1592.7,7.26193749]
[1744563237221,6.27711,1593.1,1592.8,6.27802]
[1744563237521,17.78926218,1593.2,1592.9,0.16654819]
[1744563237700,6.2771,1593.1,1592.9,0.16654819]
[1744563237908,6.2771,1593.1,1592.8,6.27802]
[1744563238079,6.2771,1593.1,1593.0,0.16654819]
[1744563238279,13.884803,1593.1,1592.7,13.37058]
[1744563238479,12.55436,1593.1,1592.8,0.16654819]
[1744563239413,6.27761,1593.0,1592.8,0.16654819]
[1744563240391,12.5553,1593.0,1592.8,0.16654819]
[1744563240587,6.27761,1593.0,1592.8,0.16654819]
[1744563240921,6.27785,1592.9,1592.8,0.16654819]
[1744563241216,7.612976,1592.9,1592.6,6.27897]
[1744563241406,7.07341,1593.0,1592.7,6.43751713]
[1744563241607,13.35106,1593.0,1592.7,6.43751713]
[1744563241803,7.07341,1593.0,1592.7,6.43751713]
[1744563242389,6.2772,1593.1,1592.8,0.7988]
[1744563242589,6.2772,1593.1,1592.9,0.15908743]
[1744563242811,14.33789922,1593.1,1592.8,7.07702]
[1744563243011,14.33789922,1593.1,1592.9,0.15908743]
[1744563243322,14.33789922,1593.1,1592.8,7.07702]
[1744563244018,14.33789922,1593.1,1592.9,0.15908743]
[1744563244223,14.33789922,1593.1,1592.8,7.07702]
[1744563244419,14.33789922,1593.1,1592.9,0.15908743]
[1744563244582,6.27746,1593.0,1592.8,0.7988]
[1744563244787,6.27746,1593.0,1592.9,0.15908743]
[1744563244984,6.27746,1593.0,1592.8,0.7988]
[1744563245210,8.50707292,1593.0,1592.6,7.07775]
[1744563245414,6.27785,1592.9,1592.7,0.15908743]
[1744563245582,14.78486292,1593.0,1592.7,0.15908743]
[1744563245783,14.78486292,1593.0,1592.7,6.43766743]
[1744563246817,15.24730971,1593.0,1592.7,0.15908743]
[1744563249335,6.27788,1592.9,1592.7,0.15908743]
[1744563249503,6.27825,1592.8,1592.7,0.15908743]
[1744563249822,7.80261097,1592.9,1592.7,0.15920774]
[1744563250399,14.08063097,1592.9,1592.7,0.15920774]
[1744563250730,18.29837897,1593.0,1592.7,0.91380774]
[1744563250922,7.53577679,1593.0,1592.7,0.91380774]
[1744563251135,7.53577679,1593.0,1592.7,7.19244774]
[1744563251440,6.456,1593.1,1592.8,6.27803]
[1744563251738,13.33246,1593.2,1592.9,0.1599296]
[1744563252120,6.27707,1593.1,1592.8,6.27803]
[1744563252635,6.27707,1593.1,1592.9,0.16089202]
[1744563252837,6.27707,1593.1,1592.8,6.27803]
[1744563253036,6.27707,1593.1,1592.9,0.16089202]
[1744563253238,6.27707,1593.1,1592.8,6.27803]
[1744563253435,6.27707,1593.1,1592.9,0.16089202]
[1744563253737,6.27707,1593.1,1592.8,6.27803]
[1744563253924,6.27707,1593.1,1593.0,0.16089202]
[1744563254124,6.27707,1593.1,1592.8,6.27803]
[1744563254295,6.27707,1593.1,1593.0,0.16089202]
[1744563254503,6.27707,1593.1,1592.8,6.27803]
[1744563254799,6.27707,1593.1,1592.9,0.16089202]
[1744563254997,6.27707,1593.1,1592.8,6.27803]
[1744563255196,6.27707,1593.1,1592.9,0.16089202]
[1744563255499,6.27707,1593.1,1592.8,6.27803]
[1744563255699,12.55432,1593.1,1592.9,0.16089202]
[1744563256205,12.55432,1593.1,1593.0,0.16089202]
[1744563256400,12.55432,1593.1,1592.8,6.27803]
[1744563256601,12.55432,1593.1,1592.9,0.16089202]
[1744563256900,6.27685,1593.2,1592.9,7.03234]
[1744563257132,6.27685,1593.2,1592.9,8.363377]
[1744563257618,6.27685,1593.2,1593.0,0.16089202]
[1744563257938,12.5537,1593.2,1592.9,7.03234]
[1744563261106,12.5537,1593.2,1593.0,0.16089202]
[1744563262533,6.27706,1593.1,1593.0,0.16089202]
[1744563262732,12.55376,1593.2,1593.0,0.16089202]
[1744563263311,22.6997553,1593.4,1593.1,7.03153]
[1744563263312,4.23934084,1593.4,1593.1,7.03153]
[1744563263508,10.51534084,1593.4,1593.1,2.1078585]
[1744563263839,16.79156084,1593.4,1593.1,2.1078585]
[1744563264046,16.79156084,1593.4,1593.2,0.15776413]
[1744563264212,10.51534084,1593.4,1593.1,2.1078585]
[1744563264412,10.51534084,1593.4,1593.2,0.15776413]
[1744563264639,10.51534084,1593.4,1593.1,2.1078585]
[1744563264842,10.51534084,1593.4,1593.2,0.15776413]
[1744563265043,10.51534084,1593.4,1593.1,2.1078585]
[1744563265244,6.27641,1593.3,1593.2,0.15776413]
[1744563265416,13.33156,1593.3,1593.2,0.15776413]
[1744563265621,6.27708,1593.1,1592.9,0.7546]
[1744563265816,6.27708,1593.1,1593.0,0.15776413]
[1744563267258,6.27771,1593.0,1592.8,0.7546]
[1744563267433,12.55542,1593.0,1592.9,0.15668153]
[1744563267635,12.55542,1593.0,1592.8,0.7546]
[1744563267835,6.27771,1593.0,1592.9,0.15668153]
[1744563268034,6.27771,1593.0,1592.8,0.7546]
[1744563268251,6.27771,1593.0,1592.9,0.15668153]
[1744563268427,6.27771,1593.0,1592.8,0.7546]
[1744563268627,6.27771,1593.0,1592.9,0.15668153]
[1744563268828,6.27771,1593.0,1592.8,0.7546]
[1744563269026,6.27763,1593.0,1592.9,0.15668153]
[1744563269243,12.55533,1593.0,1592.8,0.7546]
[1744563269456,12.55533,1593.0,1592.9,0.15668153]
[1744563269768,6.27763,1593.0,1592.8,0.7546]
[1744563269931,6.27763,1593.0,1592.9,0.15668153]
[1744563270265,6.27763,1593.0,1592.8,0.7546]
[1744563270452,6.27763,1593.0,1592.9,0.15668153]
[1744563270626,6.27763,1593.0,1592.8,0.7546]
[1744563270831,6.27763,1593.0,1592.9,0.15668153]
[1744563271046,6.27763,1593.0,1592.8,0.7546]
[1744563271263,6.27763,1593.0,1592.9,0.15668153]
[1744563271465,6.27763,1593.0,1592.8,0.7546]
[1744563271665,6.27763,1593.0,1592.9,0.15668153]
[1744563271970,6.27763,1593.0,1592.8,0.7546]
[1744563272137,6.27763,1593.0,1592.9,0.15668153]
[1744563272328,7.610979,1593.0,1592.9,0.15668153]
[1744563272666,13.888739,1593.0,1592.9,0.15812502]
[1744563272849,13.888739,1593.0,1592.6,13.31246]
[1744563273166,12.55539,1593.0,1592.7,0.15812502]
[1744563275174,6.2779,1592.9,1592.7,0.15812502]
[1744563277384,6.27763,1593.0,1592.7,6.43675502]
[1744563278573,12.55526,1593.0,1592.7,6.43675502]
[1744563280079,6.27786,1592.9,1592.7,0.15812502]
[1744563280282,6.27825,1592.8,1592.7,0.15812502]
[1744563280640,6.27825,1592.8,1592.5,7.06763]
[1744563280840,0.757,1592.9,1592.6,0.15848586]
[1744563281283,4.23439899,1592.9,1592.6,0.15848586]
[1744563281952,12.55673,1592.8,1592.4,13.33041]
[1744563282157,12.55673,1592.8,1592.7,0.15956862]
[1744563282786,12.55673,1592.8,1592.4,13.33041]
[1744563283290,12.55673,1592.8,1592.5,0.15956862]
[1744563284185,8.45373983,1592.9,1592.5,0.15956862]
[1744563284186,7.03956,1592.7,1592.5,0.15956862]
[1744563284374,6.27904,1592.6,1592.5,0.15956862]
[1744563284895,6.27904,1592.6,1592.3,7.05117]
[1744563285086,6.27904,1592.6,1592.4,0.16017021]
[1744563285284,12.55825,1592.6,1592.3,7.05117]
[1744563285475,12.55825,1592.6,1592.4,0.16017021]
[1744563285782,6.27904,1592.6,1592.3,7.05117]
[1744563285984,6.27904,1592.6,1592.5,0.16017021]
[1744563286183,13.31846,1592.7,1592.3,14.664411]
[1744563286388,13.31846,1592.7,1592.5,0.16017021]
[1744563286586,13.31846,1592.7,1592.3,14.664411]
[1744563286775,7.03963,1592.7,1592.6,0.16017021]
[1744563286977,14.6503,1592.7,1592.4,6.27976]
[1744563287201,6.27831,1592.8,1592.6,0.16017021]
[1744563287359,20.41475983,1592.9,1592.5,7.06115]
[1744563287559,26.69277983,1592.9,1592.7,0.16017021]
[1744563287776,26.69277983,1592.9,1592.5,13.34043]
[1744563287982,26.69277983,1592.9,1592.8,0.16017021]
[1744563288184,29.44489781,1592.9,1592.5,13.34043]
[1744563288578,29.44489781,1592.9,1592.6,0.16017021]
[1744563288780,10.65934084,1592.9,1592.6,12.71817021]
[1744563289052,4.21934084,1592.9,1592.6,12.71817021]
[1744563289593,4.21934084,1592.9,1592.7,6.27837]
[1744563289903,4.21934084,1592.9,1592.7,7.06037]
[1744563290055,4.21934084,1592.9,1592.8,0.16149362]
[1744563290493,4.21934084,1593.0,1592.8,0.16149362]
[1744563290696,10.49691084,1593.0,1592.8,0.16149362]
[1744563292798,16.77454084,1593.0,1592.8,0.16149362]
[1744563292976,10.49691084,1593.0,1592.8,0.16149362]
[1744563293999,6.27757,1593.0,1592.8,0.16149362]
[1744563296012,11.79613786,1593.1,1592.8,0.16149362]
[1744563296218,6.27746,1593.0,1592.8,0.16149362]
[1744563296575,12.5551,1593.0,1592.8,0.16149362]
[1744563297702,6.27746,1593.0,1592.8,0.16149362]
[1744563298308,12.55508,1593.0,1592.8,0.16149362]
[1744563299406,6.27746,1593.0,1592.8,0.16149362]
[1744563300106,14.69598586,1593.1,1592.8,6.43973362]
[1744563300107,10.49651084,1593.1,1592.8,6.43973362]
[1744563300272,4.21934084,1593.1,1592.8,7.16175698]
[1744563300596,6.27708,1593.1,1592.8,7.16175698]
[1744563300903,12.55432,1593.1,1592.8,7.16175698]
[1744563301105,12.55432,1593.1,1592.8,6.43958362]
[1744563303310,6.27708,1593.1,1592.8,6.43958362]
[1744563303893,12.5543,1593.1,1592.8,6.43958362]
[1744563304424,12.5543,1593.1,1592.8,0.16149362]
[1744563305316,6.27747,1593.0,1592.8,0.16149362]
[1744563306189,12.55454,1593.1,1592.8,6.43971362]
[1744563307216,12.55432,1593.1,1592.8,6.43971362]
[1744563307426,12.5543,1593.1,1592.8,6.43971362]
[1744563308415,12.5543,1593.1,1592.8,0.16149362]
[1744563309322,6.27754,1593.0,1592.8,0.16149362]
[1744563309987,6.27785,1592.9,1592.8,0.16149362]
[1744563310388,12.5559,1592.9,1592.6,0.7664]
[1744563310719,6.27785,1592.9,1592.6,7.04531]
[1744563310922,12.55519,1593.0,1592.7,0.15932802]
[1744563311326,6.27755,1593.0,1592.7,6.43792802]
[1744563311499,12.55516,1593.0,1592.7,6.43792802]
[1744563311703,6.27748,1593.0,1592.7,14.06466982]
[1744563311898,6.27748,1593.0,1592.7,7.78614982]
[1744563312203,12.55509,1593.0,1592.7,7.78614982]
[1744563313427,6.27748,1593.0,1592.7,7.78614982]
[1744563313629,7.04377,1593.1,1592.7,7.78614982]
[1744563313932,16.77297084,1593.2,1592.9,0.7815]
[1744563314423,6.27707,1593.1,1593.0,0.15932802]
[1744563316825,4.21934084,1593.2,1593.1,0.8146]
[1744563317190,4.21934084,1593.2,1593.1,7.24978501]
[1744563318007,4.21934084,1593.2,1593.1,0.97272501]
[1744563318208,4.21934084,1593.2,1593.1,2.32544951]
[1744563318394,4.21934084,1593.2,1593.1,8.60250951]
[1744563319861,3.08285586,1593.2,1593.1,9.15250951]
[1744563320145,5.44898875,1593.7,1593.6,7.0897]
[1744563320299,5.44898875,1593.7,1593.6,7.2397667]
[1744563320504,5.44898875,1593.7,1593.6,9.68287359]
[1744563321740,5.44898875,1593.7,1593.6,9.74561514]
[1744563322103,5.44898875,1593.7,1593.6,9.68287359]
[1744563323157,5.44898875,1593.7,1593.6,9.74561693]
[1744563323761,7.04301,1594.1,1593.7,6.2744]
[1744563323961,7.04301,1594.1,1593.8,0.14249411]
[1744563324442,7.04301,1594.1,1593.8,6.41675411]
[1744563324647,0.7697,1594.1,1593.8,6.41675411]
[1744563325765,0.7697,1594.1,1593.8,12.69090411]
[1744563326351,0.7697,1594.1,1593.8,6.41664411]
[1744563326829,0.7697,1594.1,1593.8,12.69082411]
[1744563327032,8.19584822,1594.1,1593.8,0.14249411]
[1744563327228,1.92244822,1594.1,1593.8,6.41678411]
[1744563328053,8.19558822,1594.1,1593.8,6.41678411]
[1744563328471,1.92244822,1594.1,1593.9,6.27384]
[1744563328818,1.92244822,1594.1,1594.0,0.13396035]
[1744563329346,1.92244822,1594.1,1593.8,6.27414]
[1744563329544,1.92244822,1594.1,1593.9,0.13396035]
[1744563329859,8.19558822,1594.1,1593.9,0.13396035]
[1744563334355,11.578061,1594.0,1593.9,0.13396035]
[1744563334526,6.27396,1593.9,1593.6,6.27494]
[1744563334727,12.5481,1593.9,1593.7,0.12349286]
[1744563335056,6.27396,1593.9,1593.7,0.12349286]
[1744563335265,12.54812,1593.9,1593.7,0.12349286]
[1744563335425,1.254812,1593.8,1593.7,0.12349286]
[1744563335757,8.320762,1593.8,1593.7,0.12349286]
[1744563336163,8.320762,1593.8,1593.5,6.27537]
[1744563336361,8.320762,1593.8,1593.6,0.12349286]
[1744563336525,2.046412,1593.8,1593.6,6.39856286]
[1744563338664,0.47308741,1593.9,1593.6,12.67354286]
[1744563338963,18.643411,1594.0,1593.6,13.42454286]
[1744563339163,1.61115882,1594.0,1593.6,0.87449286]
[1744563339370,0.81955882,1594.0,1593.8,6.27399]
[1744563339837,0.81955882,1594.0,1593.9,0.12529424]
[1744563340563,0.81955882,1594.0,1593.6,0.751]
[1744563340739,0.7916,1594.1,1593.7,0.12433346]
[1744563341136,0.7916,1594.2,1593.9,6.27391]
[1744563341464,0.7916,1594.2,1594.0,6.27339]
[1744563341465,3.0,1594.2,1594.0,6.27339]
[1744563341660,3.0,1594.2,1594.0,12.67111346]
[1744563341865,6.428,1594.3,1594.0,6.39769346]
[1744563342064,3.0,1594.3,1594.1,0.751]
[1744563342733,9.27245,1594.3,1594.2,0.12421337]
[1744563342929,6.27274,1594.2,1593.9,7.02482]
[1744563343167,0.7916,1594.1,1593.8,12.54838]
[1744563343471,10.907985,1594.3,1593.9,6.27387]
[1744563343472,10.06398,1594.3,1593.9,6.27387]
[1744563343628,10.06398,1594.3,1594.0,0.751]
[1744563343831,3.7916,1594.3,1594.0,0.751]
[1744563344066,6.27286,1594.2,1594.1,0.12421337]
[1744563344430,6.27286,1594.2,1593.9,7.02478]
[1744563344768,6.27286,1594.2,1594.0,0.12421337]
[1744563347071,6.27313,1594.1,1594.0,0.12421337]
[1744563347463,6.27313,1594.1,1593.7,7.02558]
[1744563347660,6.27313,1594.1,1594.0,0.12253245]
[1744563347966,6.27286,1594.2,1593.8,12.54843]
[1744563348170,6.27286,1594.2,1593.9,7.528743]
[1744563348473,9.27244,1594.3,1593.9,14.73945545]
[1744563348631,15.54499,1594.3,1593.9,14.73945545]
[1744563348845,15.54499,1594.3,1593.9,8.46555545]
[1744563349039,6.27274,1594.2,1593.9,8.46555545]
[1744563349244,12.54575,1594.2,1593.9,2.19177545]
[1744563350884,6.27318,1594.1,1593.9,2.19177545]
[1744563351272,12.54585,1594.2,1593.9,2.19177545]
[1744563351686,6.27274,1594.2,1593.9,8.46567545]
[1744563351981,6.27274,1594.2,1593.9,2.19177545]
[1744563352289,12.5458,1594.2,1593.9,2.19177545]
[1744563353687,6.27274,1594.2,1593.9,8.46566545]
[1744563356701,12.54563,1594.2,1593.9,8.46566545]
[1744563359205,6.27323,1594.1,1593.9,0.12253245]
[1744563359599,12.54651,1594.1,1593.9,0.12253245]
[1744563359799,6.27323,1594.1,1593.9,0.12253245]
[1744563361604,6.27284,1594.2,1593.9,6.39639245]
[1744563361804,9.27241,1594.3,1594.0,7.09158]
[1744563362101,3.0,1594.3,1594.0,13.48764245]
[1744563362409,9.27235,1594.3,1594.0,8.5629967]
[1744563362608,15.54488,1594.3,1594.0,8.5629967]
[1744563362907,6.27235,1594.3,1594.0,8.5629967]
[1744563363901,20.25508977,1594.4,1594.0,14.8363767]
[1744563364104,6.44,1594.4,1594.1,14.02973767]
[1744563364289,0.02,1594.4,1594.2,6.27256]
[1744563364492,0.02,1594.4,1594.2,6.39185053]
[1744563365472,0.02,1594.4,1594.2,0.11929053]
[1744563365672,0.02,1594.4,1594.1,14.02971767]
[1744563365875,6.29195,1594.4,1594.3,0.11929053]
[1744563366088,6.29195,1594.4,1594.1,6.27304]
[1744563366289,6.29195,1594.4,1594.3,0.11929053]
[1744563366489,6.29195,1594.4,1594.1,6.27304]
[1744563367009,6.29195,1594.4,1594.2,0.11929053]
[1744563367220,6.29195,1594.4,1594.1,6.27304]
[1744563367542,0.02,1594.4,1594.3,0.11929053]
[1744563367714,0.02,1594.4,1594.2,0.627304]
[1744563368085,0.02,1594.4,1594.3,0.11929053]
[1744563369609,0.02,1594.4,1594.2,7.683014]
[1744563370016,0.02,1594.4,1594.2,13.955614]
[1744563370219,0.02,1594.4,1594.3,1.3955614]
[1744563371722,0.02,1594.4,1594.3,7.6679014]
[1744563373726,0.02,1594.4,1594.3,8.51371433]
[1744563373929,0.02,1594.4,1594.3,8.4510014]
[1744563374235,0.02,1594.4,1594.3,8.70679273]
[1744563374529,1e-05,1594.4,1594.3,16.25447842]
[1744563374701,1e-05,1594.4,1594.3,11.70679273]
[1744563374901,1e-05,1594.4,1594.3,12.05514239]
[1744563375295,1e-05,1594.4,1594.3,12.11784592]
[1744563375727,1e-05,1594.4,1594.3,12.05514239]
[1744563375938,1e-05,1594.4,1594.3,12.11784593]
[1744563376105,1e-05,1594.4,1594.3,12.05514239]
[1744563376306,1e-05,1594.4,1594.3,16.60282576]
[1744563376613,1e-05,1594.4,1594.3,17.09012457]
[1744563377700,1e-05,1594.4,1594.3,12.05514239]
[1744563377907,1e-05,1594.4,1594.3,17.09012457]
[1744563378628,1e-05,1594.4,1594.3,23.25012457]
[1744563406887,1e-05,1594.4,1594.3,29.65812457]
[1744563411102,1e-05,1594.4,1594.3,24.39004239]
[1744563411767,1e-05,1594.4,1594.3,23.84004239]
[1744563417210,1e-05,1594.4,1594.3,28.32502457]
[1744563417411,1e-05,1594.4,1594.3,29.11752457]